fUSD/lending_fUSD_20241226
["ID","MTS","AMOUNT","RATE_DAILY","PERIOD"]
[346710416,1735225833501,-511.13889382,0.00017973,2]
[346710417,1735225833510,-600.21498015,0.00017973,2]
[346710418,1735225833520,-500.0,0.00017973,2]
[346710419,1735225833530,-150.343,0.00017995,2]
[346710420,1735225833539,-500.0,0.00017999,2]
[346710421,1735225833548,-347.45917975,0.00017999,2]
[346710422,1735225833558,-500.0,0.00017999,2]
[346710423,1735225833567,-500.0,0.00017999,2]
[346710424,1735225833576,-500.0,0.00017999,2]
[346710425,1735225833585,-153.32237718,0.00017999,2]
[346710426,1735225833596,-346.67762281,0.00017999,2]
[346710427,1735225833606,-584.25356851,0.00017999,2]
[346710428,1735225833616,-1040.19404554,0.00018,2]
[346710444,1735225838262,-480.58,0.00018,2]
[346710445,1735225838276,-4222.95190217,0.00018,2]
[346710446,1735225838288,-581.82166456,0.00018,2]
[346710447,1735225838299,-331.70280788,0.00018,2]
[346710448,1735225838310,-170.835084,0.00018,2]
[346710449,1735225838319,-553.164951,0.00018,2]
[346710450,1735225838331,-1183.499996,0.00018,2]
[346710451,1735225838342,-74859.2620805,0.00018,2]
[346710452,1735225838369,-4864.31398169,0.00018,2]
[346710453,1735225838380,-381.29752691,0.00018,2]
[346710454,1735225838392,-977.82259004,0.00018,2]
[346710455,1735225838403,-828.06392381,0.00018,2]
[346710456,1735225838416,-75249.66649339,0.00018,2]
[346710457,1735225838575,-10071.74758688,0.00018,2]
[346710458,1735225838587,-1269.99759,0.00018,2]
[346710459,1735225838599,-2388.6000052,0.00018,2]
[346710460,1735225838611,-285.214,0.00018,2]
[346710461,1735225838622,-34840.691785,0.00018,2]
[346710462,1735225838633,-3163.74223281,0.00018,2]
[346710463,1735225838644,-288.9699825,0.00018,2]
[346710465,1735225838655,-9266.66307812,0.00018,2]
[346710467,1735225838668,-1947.44,0.00018,2]
[346710471,1735225838700,-3025.79139569,0.00018,2]
[346710473,1735225838712,-3472.85,0.00018,2]
[346710476,1735225838723,-3654.66902766,0.00018,2]
[346710478,1735225838734,-925.60180425,0.00018,2]
[346710480,1735225838745,-1533.348258,0.00018,2]
[346710510,1735225841160,-202097.90664754,0.00018,2]
[346710511,1735225841209,-808.24307101,0.00018,2]
[346710512,1735225841221,-4848.9,0.00018,2]
[346710513,1735225841232,-24449.684382,0.00018,2]
[346710514,1735225841243,-451.9788813,0.00018,2]
[346710515,1735225841254,-9381.119514,0.00018,2]
[346710516,1735225841265,-5471.8373109,0.00018,2]
[346710517,1735225841325,-1093.98140709,0.00018,2]
[346710518,1735225841337,-502.74999668,0.00018,2]
[346710519,1735225841348,-1437.76237838,0.00018,2]
[346710520,1735225841359,-5663.00549854,0.00018,2]
[346710521,1735225841370,-297646.91313018,0.00018,2]
[346710522,1735225841380,-3622.39033404,0.00018,2]
[346710523,1735225841445,-3907.79298001,0.00018,2]
[346710524,1735225841457,-1512.7,0.00018,2]
[346710525,1735225841467,-13201.90983459,0.00018,2]
[346710526,1735225841479,-281.48008961,0.00018,2]
[346710527,1735225841490,-992.79,0.00018,2]
[346710528,1735225841501,-937.5,0.00018,2]
[346710529,1735225841512,-5019.68047745,0.00018,2]
[346710530,1735225841523,-12985.84610772,0.00018,2]
[346710531,1735225841535,-6014.6,0.00018,2]
[346710532,1735225841598,-800.89909356,0.00018,2]
[346710544,1735225843757,-190150.64220867,0.00018,2]
[346710545,1735225843768,-11585.49986,0.00018,2]
[346710546,1735225843779,-1648.35,0.00018,2]
[346710547,1735225843790,-449.89721201,0.00018,2]
[346710548,1735225843884,-9573.1423776,0.00018,2]
[346710549,1735225843896,-1941.08,0.00018,2]
[346710550,1735225843907,-10105.0,0.00018,2]
[346710551,1735225843957,-546.073235,0.00018,2]
[346710552,1735225843968,-707.3898016,0.00018,2]
[346710553,1735225843979,-4413.25153393,0.00018,2]
[346710559,1735225846550,-395.31149671,0.00017973,2]
[346710560,1735225846698,-104.68850329,0.00017973,2]
[346710561,1735225846708,-6664.56818783,0.00018,2]
[346710562,1735225846720,-5787.35628123,0.00018,2]
[346710563,1735225846731,-168181.31092074,0.00018,2]
[346710564,1735225846741,-870120.52387726,0.00018,2]
[346710565,1735225846807,-772.09808,0.00018,2]
[346710566,1735225846819,-477.2862,0.00018,2]
[346710567,1735225846831,-399.78581851,0.00018,2]
[346710568,1735225846863,-3805.83049162,0.00018,2]
[346710569,1735225846874,-3238.3025402,0.00018,2]
[346710579,1735226401825,6308.0,0.00012022,10]
[346710580,1735226412240,1000.0,0.0002,120]
[346710589,1735226880886,1573.45957577,0.00012,10]
[346710634,1735227031650,-1952.0921292,0.0001,2]
[346710635,1735227031662,-2856.04543369,0.0001,2]
[346710636,1735227031673,-959.18225948,0.0001,2]
[346710637,1735227031724,-201.62064533,0.0001,2]
[346710638,1735227031733,-147.26945671,0.00010137,2]
[346710639,1735227031766,-30.04054329,0.00010137,2]
[346710640,1735227031775,-21861.0,0.00012239,2]
[346710641,1735227031785,-10832.05154575,0.00012767,2]
[346710642,1735227031851,-437.7779378,0.00012767,2]
[346710643,1735227031863,-1120.17828167,0.00012767,2]
[346710644,1735227031873,-172.40316023,0.00012999,2]
[346710645,1735227031905,-143.98119308,0.00012999,2]
[346710646,1735227031915,-6008.069727,0.00013,2]
[346710647,1735227031926,-337.862729,0.00013,2]
[346710648,1735227031961,-1635.20433221,0.00013,2]
[346710655,1735227032047,-372.05445868,0.00013,2]
[346710661,1735227032094,-1204.56856532,0.00013,2]
[346710663,1735227032105,-604.32310367,0.00013,2]
[346710665,1735227032118,-692.77500015,0.00013,2]
[346710667,1735227032129,-450.0,0.00013,2]
[346710669,1735227037398,-500.0,0.00012973,2]
[346710670,1735227037408,-32950.0000001,0.00013,2]
[346710671,1735227037422,-3809.98883121,0.00013,2]
[346710692,1735227038181,-465.52537314,0.00013,2]
[346710693,1735227038231,-3381.22978117,0.00013,2]
[346710694,1735227038243,-273.02906358,0.00013,2]
[346710695,1735227038289,-346.75445171,0.00013,2]
[346710696,1735227038301,-6202.26410402,0.00013,2]
[346710697,1735227038313,-9750.000001,0.00013,2]
[346710698,1735227038324,-3887.4999975,0.00013,2]
[346710699,1735227038335,-28057.1505,0.00013,2]
[346710712,1735227040515,-1608.80280185,0.00013,2]
[346710713,1735227040543,-246821.878308,0.00013,2]
[346710714,1735227040555,-97418.36913792,0.00013,2]
[346710715,1735227040566,-3626.99272762,0.00013,2]
[346710716,1735227040577,-838.68893181,0.00013,2]
[346710717,1735227040628,-898.07793177,0.00013,2]
[346710718,1735227040709,-1063.56685,0.00013,2]
[346710719,1735227040836,-349.59858613,0.00013,2]
[346710720,1735227040848,-18105.73147517,0.00013,2]
[346710721,1735227040860,-9215.32059837,0.00013,2]
[346710722,1735227040912,-7204.59203402,0.00013,2]
[346710723,1735227040924,-6210.29377474,0.00013,2]
[346710724,1735227040935,-1176.7,0.00013,2]
[346710725,1735227040947,-2981.94530141,0.00013,2]
[346710730,1735227042775,-1136.42593314,0.00013,2]
[346710731,1735227042815,-357.18,0.00013,2]
[346710732,1735227042827,-429.73984,0.00013,2]
[346710733,1735227042838,-288.26999,0.00013,2]
[346710734,1735227042885,-63845.94839815,0.00013,2]
[346710747,1735227045665,-297.0172808,0.00013,2]
[346710748,1735227045679,-1715.46033963,0.00013,2]
[346710749,1735227045690,-1870.49302,0.00013,2]
[346710750,1735227045701,-31159.16852999,0.00013,2]
[346710757,1735227339904,407.14803611,0.00013,30]
[346711013,1735228231858,-150.4,0.00010137,2]
[346711014,1735228231868,-222.70081044,0.00011254,2]
[346711015,1735228231880,-708.77918956,0.00011254,2]
[346711016,1735228231890,-244.81,0.00011973,2]
[346711017,1735228231902,-8738.0,0.00011995,2]
[346711018,1735228231911,-331.16,0.00012016,3]
[346711019,1735228231921,-247.12463699,0.00012084,2]
[346711020,1735228231930,-173.227,0.00012116,2]
[346711021,1735228231941,-3169.14,0.00012116,2]
[346711022,1735228231950,-3023.89046458,0.00012181,2]
[346711023,1735228231960,-151.0,0.00012184,2]
[346711024,1735228231970,-2751.0,0.00012201,2]
[346711025,1735228231979,-18793.51543808,0.00012239,2]
[346711026,1735228231991,-44779.11270457,0.00012239,2]
[346711027,1735228232000,-250.0,0.00012281,2]
[346711028,1735228232010,-151.0,0.00012284,2]
[346711029,1735228232019,-151.0,0.00012384,2]
[346711030,1735228232029,-1000.0,0.0001249,2]
[346711031,1735228232039,-170.27,0.00012561,2]
[346711032,1735228232049,-150.0,0.00012603,2]
[346711033,1735228232058,-386.71094445,0.00012608,2]
[346711034,1735228232067,-4092.0,0.000127,5]
[346711035,1735228232078,-188.24754585,0.000129,2]
[346711036,1735228232087,-4550.02552618,0.000129,2]
[346711037,1735228232097,-500.0,0.00012973,2]
[346711038,1735228232106,-221.27145066,0.0001299,2]
[346711039,1735228232116,-542.2417,0.00012999,2]
[346711040,1735228232126,-11952.2124552,0.00012999,2]
[346711041,1735228232135,-640669.62906072,0.00012999,2]
[346711042,1735228232173,-19518.4,0.00012999,2]
[346711043,1735228232184,-378.62,0.00012999,2]
[346711044,1735228232197,-17356.19609479,0.00012999,2]
[346711048,1735228232208,-320.25724888,0.00012999,2]
[346711059,1735228232259,-12111.01998044,0.00012999,2]
[346711136,1735228237800,-500.0,0.00012998,2]
[346711137,1735228237810,-500.0,0.00012998,2]
[346711138,1735228237819,-528.48766982,0.00012998,2]
[346711139,1735228237829,-500.0,0.00012998,2]
[346711140,1735228237838,-500.0,0.00012998,2]
[346711141,1735228237848,-117.74775827,0.00012998,2]
[346711142,1735228237859,-382.25224173,0.00012998,2]
[346711143,1735228237869,-506.65894088,0.00012998,2]
[346711144,1735228237879,-7757.26724425,0.00012999,2]
[346711147,1735228238080,-605.30966957,0.00012999,2]
[346711149,1735228238092,-7597.21509,0.00012999,2]
[346711159,1735228239689,-5338.39656009,0.00012999,2]
[346711160,1735228239704,-2857.5,0.00012999,2]
[346711452,1735228242920,-726919.18143219,0.00012999,2]
[346711454,1735228242929,-408725.87590988,0.00013,2]
[346711456,1735228242940,-997.92605432,0.00013,2]
[346711498,1735228246602,-429.84975829,0.00013,2]
[346711499,1735228246710,-521.56177382,0.00013,2]
[346711500,1735228246722,-557.6099985,0.00013,2]
[346711501,1735228246797,-6671.93100495,0.00013,2]
[346711502,1735228246808,-2808.60603,0.00013,2]
[346711503,1735228246876,-158292.88041421,0.00013,2]
[346711505,1735228904936,226.1156939,0.00013,30]
[346711506,1735228950767,150.0,0.00018928,120]
[346711516,1735229310773,150.0,0.0001998,120]
[346712031,1735229431944,-167.81,0.00010137,2]
[346712032,1735229431954,-945.69,0.00011352,2]
[346712033,1735229431963,-265.16431652,0.00011757,2]
[346712034,1735229431975,-200.83568348,0.00011757,2]
[346712035,1735229431984,-422.60438388,0.00011989,2]
[346712036,1735229431995,-536.49661616,0.00011989,2]
[346712037,1735229432005,-1000.0,0.00012051,2]
[346712038,1735229432014,-179.02,0.00012286,2]
[346712039,1735229432023,-809.48338434,0.00012323,2]
[346712040,1735229432036,-520.41,0.00012323,2]
[346712041,1735229432082,-94.40661566,0.00012323,2]
[346712042,1735229432092,-392.58,0.00012369,2]
[346712043,1735229432102,-250.0,0.00012444,2]
[346712044,1735229432112,-400.0,0.00012507,2]
[346712045,1735229432124,-163.75,0.00012527,2]
[346712046,1735229432136,-500.0,0.00012548,2]
[346712047,1735229432146,-511.26338434,0.00012571,2]
[346712532,1735229438066,-2021.64661566,0.00012571,2]
[346712533,1735229438075,-500.0,0.00012642,2]
[346712534,1735229438084,-429.04098534,0.00012642,2]
[346712535,1735229438095,-1574.3123995,0.00012689,2]
[346712536,1735229438124,-1226.40631242,0.00012689,2]
[346712565,1735229440297,-323.65411,0.00012689,2]
[346712566,1735229440307,-2452.28589765,0.000129,2]
[346712567,1735229440357,-3693.63750235,0.000129,2]
[346712568,1735229440367,-287.9718038,0.000129,2]
[346712569,1735229440376,-409.54538985,0.0001299,2]
[346712570,1735229440387,-1011.67461015,0.0001299,2]
[346712571,1735229440396,-2344.53839685,0.00012999,2]
[346712572,1735229440465,-6155.46160315,0.00012999,2]
[346712573,1735229440475,-901.11439685,0.00013,2]
[346712574,1735229440550,-1510.315,0.00013,2]
[346712575,1735229440562,-2410.38984986,0.00013,2]
[346712576,1735229440591,-500.0,0.00013,2]
[346712577,1735229442848,-123948.49732594,0.00013,2]
[346712578,1735229442858,-77737.42799906,0.00013,2]
[346712579,1735229442869,-793.17512644,0.00013,2]
[346712580,1735229442881,-291.06216919,0.00013,2]
[346712581,1735229442894,-552.43582965,0.00013,2]
[346712582,1735229442906,-371.7000001,0.00013,2]
[346712583,1735229442918,-686.0,0.00013,2]
[346712584,1735229442947,-5581.93221121,0.00013,2]
[346712585,1735229443009,-1753.95,0.00013,2]
[346712604,1735229446110,-2000.0,0.00013,2]
[346712605,1735229446277,-232.31666435,0.00013,2]
[346712606,1735229446286,-25876.0,0.00013,2]
[346712607,1735229446295,-200.0,0.00013,2]
[346712608,1735229446304,-450.0,0.00013,2]
[346712609,1735229446314,-3000.0,0.00013,2]
[346712610,1735229446323,-203.89,0.00013,2]
[346712611,1735229446332,-202.4,0.00013,2]
[346712612,1735229446341,-9520.88,0.00013033,2]
[346712613,1735229446350,-1911.53,0.00013131,2]
[346712615,1735229446359,-12225.61100298,0.00013369,2]
[346712617,1735229446368,-244.81,0.00013469,2]
[346712619,1735229446378,-1000.0,0.00013557,2]
[346712621,1735229446387,-945.69,0.00013616,2]
[346712622,1735229446396,-200.0,0.00013658,2]
[346712623,1735229446405,-200.0,0.00013699,2]
[346712624,1735229446415,-176.26,0.00013699,2]
[346712625,1735229446424,-3124.3728219,0.00013836,2]
[346712626,1735229446433,-1424.3,0.00013863,2]
[346712627,1735229446442,-12225.61100289,0.00013872,2]
[346712628,1735229446451,-23900.0,0.00014097,2]
[346712629,1735229446462,-12225.61100289,0.00014376,2]
[346712630,1735229446471,-176.26,0.00014384,2]
[346712631,1735229446481,-147625.0,0.000147,2]
[346712632,1735229446490,-600.0,0.00014868,2]
[346712633,1735229446499,-12225.61100289,0.00014879,2]
[346712634,1735229446509,-244.81,0.00014966,2]
[346712635,1735229446518,-3124.3728219,0.00014982,2]
[346712636,1735229446527,-500.0,0.00015,2]
[346712637,1735229446538,-5561.0,0.00015,3]
[346712638,1735229446547,-1000.0,0.00015063,2]
[346712639,1735229446557,-176.26,0.00015068,2]
[346712640,1735229446567,-5461.0,0.000152,2]
[346712641,1735229446576,-12225.61100289,0.00015383,2]
[346712642,1735229446586,-5561.0,0.000154,5]
[346712643,1735229446595,-1424.3,0.00015403,2]
[346712644,1735229446605,-300.0,0.00015565,2]
[346712645,1735229446614,-176.26,0.00015753,2]
[346712646,1735229446624,-945.69,0.0001588,2]
[346712647,1735229446633,-12225.61100289,0.00015886,2]
[346712648,1735229446644,-500.0,0.00015964,2]
[346712649,1735229446653,-500.0,0.00015964,2]
[346712650,1735229446663,-221.27145067,0.0001599,2]
[346712651,1735229446672,-46418.6740163,0.00016,2]
[346712652,1735229446682,-1981.0,0.000161,2]
[346712653,1735229446692,-3124.3728219,0.00016129,2]
[346712654,1735229446701,-600.0,0.00016238,2]
[346712655,1735229446712,-188.24754585,0.00016291,2]
[346712656,1735229446722,-200.0,0.0001634,2]
[346712657,1735229446735,-386.38,0.00016356,2]
[346712658,1735229446744,-386.38,0.00016361,2]
[346712659,1735229446754,-386.38,0.00016365,2]
[346712660,1735229446763,-386.38,0.00016369,2]
[346712661,1735229446775,-386.38,0.00016374,2]
[346712662,1735229446785,-386.38,0.00016378,2]
[346712663,1735229446794,-386.38,0.00016382,2]
[346712664,1735229446804,-386.38,0.00016387,2]
[346712665,1735229446814,-500.0,0.00016389,2]
[346712666,1735229446824,-500.0,0.00016389,2]
[346712667,1735229446833,-320.25724888,0.00016389,2]
[346712668,1735229446844,-587.98172688,0.00016389,2]
[346712669,1735229446853,-12225.61100289,0.0001639,2]
[346712670,1735229446863,-219937.83,0.0001639,2]
[346712671,1735229446872,-386.38,0.00016391,2]
[346712672,1735229446882,-151.0,0.00016391,2]
[346712673,1735229446892,-386.38,0.00016395,2]
[346712674,1735229446901,-386.38,0.00016399,2]
[346712675,1735229446911,-386.38,0.00016404,2]
[346712676,1735229446921,-386.38,0.00016408,2]
[346712677,1735229446931,-386.38,0.00016412,2]
[346712678,1735229446940,-386.38,0.00016417,2]
[346712679,1735229446950,-386.38,0.00016421,2]
[346712680,1735229446959,-386.38,0.00016425,2]
[346712681,1735229446970,-386.38,0.0001643,2]
[346712682,1735229446979,-386.38,0.00016434,2]
[346712683,1735229446988,-386.38,0.00016438,2]
[346712684,1735229446998,-176.26,0.00016438,2]
[346712685,1735229447007,-166.66,0.00016445,2]
[346712686,1735229447016,-244.81,0.00016462,2]
[346712687,1735229447027,-5624.67,0.000165,2]
[346712688,1735229447036,-151.0,0.000165,2]
[346712689,1735229447046,-1000.0,0.000165,2]
[346712690,1735229447055,-1000.0,0.00016569,2]
[346712691,1735229447064,-150.85,0.00016658,30]
[346712692,1735229447074,-151.165644,0.00016789,2]
[346712693,1735229447083,-177.31,0.00016813,2]
[346712694,1735229447093,-12225.61100289,0.00016893,2]
[346712695,1735229447103,-1000.0,0.000169,2]
[346712696,1735229447113,-300.0,0.00016935,2]
[346712697,1735229447122,-1424.3,0.00016944,2]
[346712698,1735229447132,-166.66,0.00016988,2]
[346712699,1735229447142,-550.0,0.00017,2]
[346712700,1735229447152,-480.717,0.000171,2]
[346712701,1735229447161,-3124.3728219,0.00017275,2]
[346712702,1735229447170,-2153.53566676,0.00017309,2]
[346712703,1735229447180,-2153.53566676,0.00017309,2]
[346712704,1735229447190,-392.58,0.00017317,2]
[346712705,1735229447199,-152.0,0.00017358,3]
[346712706,1735229447211,-12225.61100289,0.00017397,2]
[346712707,1735229447223,-499.02248788,0.00017421,2]
[346712708,1735229447232,-342.18,0.00017432,2]
[346712709,1735229447241,-166.66,0.00017531,2]
[346712710,1735229447251,-500.0,0.00017534,2]
[346712711,1735229447261,-600.0,0.00017608,2]
[346712712,1735229447271,-1819.14,0.00017689,7]
[346712713,1735229447280,-1819.14,0.00017689,7]
[346712714,1735229447290,-1819.14,0.00017689,7]
[346712715,1735229447299,-1819.14,0.00017689,7]
[346712716,1735229447309,-1000.0,0.000177,2]
[346712717,1735229447318,-157.69833806,0.00017708,2]
[346712718,1735229447327,-1250.0,0.00017808,2]
[346712719,1735229447338,-2500.0,0.00017808,2]
[346712720,1735229447348,-3750.0,0.00017808,2]
[346712721,1735229447357,-5000.0,0.00017808,2]
[346712722,1735229447367,-6250.0,0.00017808,2]
[346712723,1735229447376,-4170.7939393,0.00017808,2]
[346712724,1735229447386,-157.69833806,0.00017851,2]
[346712725,1735229447396,-1000.0,0.000179,2]
[346712726,1735229447406,-12225.61100289,0.000179,2]
[346712727,1735229447416,-172.12713795,0.000179,3]
[346712728,1735229447426,-262.03448254,0.000179,2]
[346712729,1735229447436,-382.76169771,0.000179,2]
[346712730,1735229447445,-1000.0,0.0001792,2]
[346712731,1735229447454,-1000.0,0.0001793,2]
[346712732,1735229447465,-1000.0,0.0001794,2]
[346712733,1735229447474,-1000.0,0.0001795,2]
[346712734,1735229447484,-244.81,0.00017959,2]
[346712735,1735229447494,-1819.14,0.00017962,7]
[346712736,1735229447504,-1819.14,0.00017962,7]
[346712737,1735229447513,-1000.0,0.0001797,2]
[346712738,1735229447523,-2534.0,0.00017973,2]
[346712739,1735229447532,-500.0,0.00017973,2]
[346712740,1735229447542,-25067.1452167,0.0001798,2]
[346712741,1735229447551,-15626.43,0.0001798,2]
[346712742,1735229447560,-157.69833806,0.00017994,2]
[346712743,1735229447570,-46415.6058653,0.00017994,2]
[346712744,1735229447579,-564.0,0.00017999,2]
[346712745,1735229447589,-55494.3545765,0.00017999,5]
[346712746,1735229447599,-218.27004618,0.00017999,5]
[346712747,1735229447609,-151.0,0.00017999,2]
[346712748,1735229447619,-151.0,0.00017999,2]
[346712749,1735229447629,-151.758426,0.00017999,2]
[346712750,1735229447638,-151.0,0.00017999,2]
[346712751,1735229447648,-151.0,0.00017999,2]
[346712752,1735229447658,-151.0,0.00017999,2]
[346712753,1735229447668,-264.520592,0.00017999,2]
[346712754,1735229447677,-151.0,0.00017999,2]
[346712755,1735229447687,-151.0,0.00017999,2]
[346712756,1735229447696,-151.0,0.00017999,2]
[346712757,1735229447706,-151.0,0.00017999,2]
[346712758,1735229447717,-151.0,0.00017999,2]
[346712759,1735229447727,-168.795584,0.00017999,2]
[346712760,1735229447738,-168.795584,0.00017999,2]
[346712761,1735229447751,-315.2412,0.00017999,2]
[346712762,1735229447760,-315.2412,0.00017999,2]
[346712763,1735229447770,-154.177506,0.00017999,2]
[346712764,1735229447779,-151.0,0.00017999,2]
[346712765,1735229447790,-151.186537,0.00017999,2]
[346712766,1735229447799,-151.0,0.00017999,2]
[346712767,1735229447808,-151.0,0.00017999,2]
[346712768,1735229447819,-151.0,0.00017999,2]
[346712769,1735229447828,-151.0,0.00017999,2]
[346712770,1735229447838,-151.0,0.00017999,2]
[346712771,1735229447847,-151.0,0.00017999,2]
[346712772,1735229447857,-151.0,0.00017999,2]
[346712773,1735229447867,-151.0,0.00017999,2]
[346712774,1735229447876,-168.968,0.00017999,2]
[346712775,1735229447885,-151.0,0.00017999,2]
[346712776,1735229447894,-231.90422,0.00017999,2]
[346712777,1735229447903,-12453.95087521,0.00017999,2]
[346712778,1735229447912,-122438.76371338,0.00018,2]
[346712779,1735229447926,-349501.672066,0.00018,2]
[346712780,1735229447937,-233794.21748589,0.00018,2]
[346712781,1735229447984,-4660.12491763,0.00018,2]
[346712782,1735229447995,-79261.7926361,0.00018,2]
[346712783,1735229448222,-805.44008607,0.00018,2]
[346712784,1735229448295,-457.00711509,0.00018,2]
[346712785,1735229448306,-262.05312674,0.00018,2]
[346712788,1735230329999,252.13369766,9e-05,2]
[346712854,1735230631956,-159.57,0.00010137,2]
[346712855,1735230631966,-191.625,0.00010999,2]
[346712856,1735230631978,-296.374999,0.00010999,2]
[346712857,1735230631988,-3634.20686981,0.00011,2]
[346712858,1735230631999,-11536.07194134,0.00011,2]
[346712859,1735230632011,-957.45727491,0.00011,2]
[346712860,1735230632020,-293.71807372,0.000125,2]
[346712861,1735230632029,-203.58,0.00012657,2]
[346712862,1735230632039,-1653.0029,0.000129,2]
[346712863,1735230632049,-300.0,0.000129,4]
[346712864,1735230632063,-520.72880365,0.00012911,2]
[346712865,1735230632073,-13242.01294772,0.00012911,2]
[346712866,1735230632085,-7316.0,0.00012911,2]
[346712867,1735230632118,-4819.25,0.00012911,2]
[346712868,1735230632130,-2242.20736809,0.00012911,2]
[346712869,1735230632139,-184.66583517,0.00012911,2]
[346712870,1735230632149,-644.83179674,0.00013,2]
[346712871,1735230632160,-3517.25,0.00013,2]
[346712872,1735230632171,-3441.45,0.00013,2]
[346712873,1735230632182,-3441.33,0.00013,2]
[346712878,1735230632422,-6023.74419561,0.00013,2]
[346712881,1735230632440,-108425.0349803,0.00013,2]
[346712889,1735230632510,-5004.98659038,0.00013,2]
[346712905,1735230632647,-524.72012969,0.00012999,2]
[346712907,1735230632659,-53.78371682,0.00012999,2]
[346712909,1735230632669,-5412.4767459,0.00013,2]
[346712944,1735230637909,-482.165,0.00013,2]
[346712945,1735230637920,-350.87863165,0.00013,2]
[346712946,1735230637932,-2455.22011206,0.00013,2]
[346712947,1735230638020,-845.88342142,0.00013,2]
[346712948,1735230638031,-2350.4700651,0.00013,2]
[346712949,1735230638130,-4822.6,0.00013,2]
[346712950,1735230638188,-525.45,0.00013,2]
[346713118,1735230640060,-3859.36269954,0.00013,2]
[346713148,1735230640339,-1607.50718033,0.00013,2]
[346713150,1735230640351,-2063.16617981,0.00013,2]
[346713483,1735230643364,-1202.03926655,0.0001299,2]
[346713484,1735230643373,-75972.82587654,0.00013,2]
[346713485,1735230643384,-913.07358999,0.00013,2]
[346713486,1735230643396,-709.07707001,0.00013,2]
[346713487,1735230643406,-2893.7,0.00013,2]
[346713490,1735230643434,-1395.71527919,0.00013,2]
[346713492,1735230643445,-1170.0,0.00013,2]
[346713712,1735230646201,-307874.37708246,0.00013,2]
[346713713,1735230646328,-385.032,0.00013,2]
[346713715,1735230646424,-3771.45565287,0.00013,2]
[346713716,1735230646561,-6991.20000002,0.00013,2]
[346713754,1735231832138,-1040.54,0.00010014,2]
[346713755,1735231832148,-151.82,0.00010137,2]
[346713756,1735231832158,-167.81,0.00010137,2]
[346713757,1735231832168,-1399.25673392,0.00011375,2]
[346713758,1735231832178,-1000.0,0.00011426,2]
[346713759,1735231832188,-258.72643114,0.00011461,2]
[346713760,1735231832411,-594.1,0.00011475,2]
[346713761,1735231832432,-152.52163605,0.00011475,2]
[346713762,1735231832444,-585.74836395,0.00011475,2]
[346713763,1735231832454,-176.54,0.00011485,2]
[346713764,1735231832464,-466.18163605,0.00011499,2]
[346713765,1735231832476,-1294.73836395,0.00011499,2]
[346713766,1735231832486,-400.0,0.0001156,2]
[346713767,1735231832495,-150.0,0.00011561,2]
[346713768,1735231832505,-200.0,0.00011642,2]
[346713769,1735231832514,-250.0,0.00011693,2]
[346713770,1735231832523,-151.0,0.00011729,2]
[346713772,1735231832532,-203.66,0.00011738,2]
[346713774,1735231832542,-150.0,0.00011781,2]
[346713776,1735231832552,-151.0,0.00011829,2]
[346713778,1735231832561,-526.48,0.00011903,2]
[346713780,1735231832570,-151.0,0.00011929,2]
[346713782,1735231832580,-300.0,0.00011929,2]
[346713784,1735231832590,-653.54,0.0001193,2]
[346713786,1735231832599,-196.41,0.0001193,2]
[346713788,1735231832608,-151.0,0.00012029,2]
[346713790,1735231832618,-723.03,0.00012046,2]
[346713792,1735231832627,-1213.89186971,0.0001206,2]
[346713799,1735231832679,-405.02194882,0.0001206,2]
[346713804,1735231832691,-1132.08618147,0.0001206,2]